fUST/lending_fUST_20241213
["ID","MTS","AMOUNT","RATE_DAILY","PERIOD"]
[345217722,1734095433214,-500.0,0.00027397,7]
[345217724,1734095433224,-500.0,0.00027397,7]
[345217726,1734095433238,-526.49,0.00027397,7]
[345217729,1734095433249,-500.0,0.00027397,7]
[345217731,1734095433259,-500.0,0.00027397,7]
[345217733,1734095433269,-500.0,0.00027397,7]
[345217735,1734095433279,-500.0,0.00027397,7]
[345217737,1734095433289,-500.0,0.00027397,7]
[345217739,1734095433300,-500.0,0.00027397,7]
[345217741,1734095433309,-500.0,0.00027397,7]
[345217743,1734095433320,-500.0,0.00027397,7]
[345217745,1734095433330,-1151.42,0.00027397,7]
[345217747,1734095433340,-158.7990712,0.00027397,7]
[345217749,1734095433349,-500.0,0.00027397,7]
[345217751,1734095433359,-500.0,0.00027397,7]
[345217753,1734095433369,-500.0,0.00027397,7]
[345217755,1734095433383,-621.88,0.00027397,7]
[345217757,1734095433392,-500.0,0.00027397,7]
[345217759,1734095433403,-500.0,0.00027397,7]
[345217761,1734095433414,-500.0,0.00027397,7]
[345217763,1734095433423,-500.0,0.00027397,7]
[345217765,1734095433434,-500.0,0.00027397,7]
[345217767,1734095433445,-500.0,0.00027397,7]
[345217769,1734095433455,-437.89372404,0.00027397,7]
[345218182,1734095438810,-542.05,0.00027312,15]
[345218183,1734095438821,-62.10627596,0.00027397,7]
[345218186,1734095438831,-138.79492996,0.00027397,7]
[345218188,1734095438844,-361.20507004,0.00027397,7]
[345218190,1734095438854,-500.0,0.00027397,7]
[345218192,1734095438864,-500.0,0.00027397,7]
[345218194,1734095438874,-500.0,0.00027397,7]
[345218196,1734095438883,-503.57967657,0.00027397,7]
[345218198,1734095438893,-504.04,0.00027397,7]
[345218200,1734095438903,-500.0,0.00027397,7]
[345218202,1734095438913,-500.0,0.00027397,7]
[345218204,1734095438922,-263.97681268,0.00027397,7]
[345218206,1734095438932,-649.87412192,0.00027397,7]
[345218207,1734095438942,-500.0,0.00027397,7]
[345218208,1734095438952,-500.0,0.00027397,7]
[345218210,1734095438963,-500.0,0.00027397,7]
[345218212,1734095438973,-735.49,0.00027397,7]
[345218213,1734095438983,-500.0,0.00027397,7]
[345218215,1734095439002,-500.0,0.00027397,7]
[345218217,1734095439012,-370.48938651,0.00027397,7]
[345218219,1734095439023,-749.79,0.00027397,7]
[345218220,1734095439033,-500.0,0.00027397,7]
[345218221,1734095439047,-500.0,0.00027397,7]
[345218222,1734095439058,-656.44,0.00027397,7]
[345218223,1734095439068,-500.0,0.00027397,7]
[345218224,1734095439079,-500.0,0.00027397,7]
[345218225,1734095439090,-500.0,0.00027397,7]
[345218226,1734095439100,-500.0,0.00027397,7]
[345218227,1734095439111,-500.0,0.00027397,7]
[345218228,1734095439120,-500.0,0.00027397,7]
[345218229,1734095439130,-500.0,0.00027397,7]
[345218230,1734095439140,-500.0,0.00027397,7]
[345218231,1734095439151,-583.78,0.00027397,7]
[345218232,1734095439161,-500.0,0.00027397,7]
[345218233,1734095439171,-500.0,0.00027397,7]
[345218234,1734095439181,-500.0,0.00027397,7]
[345218235,1734095439192,-988.17,0.00027397,7]
[345218236,1734095439201,-500.0,0.00027397,7]
[345218237,1734095439211,-168.0,0.00027397,7]
[345218238,1734095439223,-1926.12,0.00027397,7]
[345218239,1734095439233,-500.0,0.00027397,7]
[345218240,1734095439244,-500.0,0.00027397,7]
[345218241,1734095439254,-2299.04496355,0.00027397,7]
[345218242,1734095439268,-509.765,0.00027397,7]
[345218260,1734095443795,-520.429,0.00027312,15]
[345218261,1734095443805,-0.90003645,0.00027397,7]
[345218262,1734095443815,-500.0,0.00027397,7]
[345218263,1734095443825,-500.0,0.00027397,7]
[345218264,1734095443835,-500.0,0.00027397,7]
[345218265,1734095443845,-500.0,0.00027397,7]
[345218266,1734095443855,-500.0,0.00027397,7]
[345218267,1734095443865,-500.0,0.00027397,7]
[345218268,1734095443874,-593.54,0.00027397,7]
[345218269,1734095443884,-794.1,0.00027397,7]
[345218271,1734095443895,-121.4759173,0.00027397,7]
[345219952,1734095503674,165.654856,0.00013973,2]
[345219959,1734096241418,10000.0,0.000256,60]
[345219960,1734096252783,10000.0,0.000256,60]
[345219961,1734096263788,10000.0,0.000256,60]
[345219962,1734096279443,701.48,0.000256,60]
[345219970,1734096479711,9035.56432081,0.00016,2]
[345219973,1734096500820,402.61754977,0.000125,2]
[345219974,1734096518290,3733.84207046,0.00025502,120]
[345219975,1734096521589,2967.48694121,0.00025,120]
[345219976,1734096521615,3829.19588636,0.00025,120]
[345219977,1734096521876,1690.14778193,0.0001999,2]
[345219981,1734096558481,165.654856,0.00013973,2]
[345220010,1734096632083,-171.37084753,0.000225,2]
[345220012,1734096632093,-243.47324164,0.00023,2]
[345220014,1734096632103,-150.9999981,0.00023,2]
[345220016,1734096632112,-165.654856,0.00025156,2]
[345220018,1734096632122,-173.332632,0.00025985,2]
[345220020,1734096632132,-160.12219244,0.00026021,2]
[345220026,1734096632199,-595.42452896,0.00026021,2]
[345220027,1734096632210,-304.630043,0.00026104,2]
[345220028,1734096632220,-50.41902004,0.00026173,2]
[345220075,1734096640046,-2266.29155486,0.00026173,2]
[345220077,1734096640056,-300.0,0.00027211,2]
[345220079,1734096640065,-300.0,0.00027211,2]
[345220081,1734096640075,-2630.75476816,0.00027212,2]
[345220083,1734096640085,-521.3689,0.00027262,15]
[345220085,1734096640094,-733.749779,0.00027297,2]
[345220087,1734096640104,-166.9229805,0.00027396,2]
[345220089,1734096640113,-4891.63253668,0.00027397,2]
[345220091,1734096640123,-500.0,0.00027397,7]
[345220093,1734096640144,-500.0,0.00027397,7]
[345220095,1734096640163,-500.0,0.00027397,7]
[345220097,1734096640173,-500.0,0.00027397,7]
[345220099,1734096640183,-500.0,0.00027397,7]
[345220101,1734096640192,-180.03918745,0.00027397,7]
[345220103,1734096640201,-500.0,0.00027397,7]
[345220105,1734096640213,-504.55,0.00027397,7]
[345220107,1734096640223,-500.0,0.00027397,7]
[345220109,1734096640237,-500.0,0.00027397,7]
[345220111,1734096640247,-500.0,0.00027397,7]
[345220113,1734096640257,-500.0,0.00027397,7]
[345220115,1734096640267,-506.18929587,0.00027397,7]
[345220117,1734096640276,-500.0,0.00027397,7]
[345220119,1734096640286,-500.0,0.00027397,7]
[345220121,1734096640296,-500.0,0.00027397,7]
[345220123,1734096640305,-500.0,0.00027397,7]
[345220125,1734096640315,-500.0,0.00027397,7]
[345220127,1734096640325,-629.09,0.00027397,7]
[345220129,1734096640334,-500.0,0.00027397,7]
[345220131,1734096640343,-500.0,0.00027397,7]
[345220133,1734096640353,-500.0,0.00027397,7]
[345220134,1734096640362,-595.97,0.00027397,7]
[345220135,1734096640372,-500.0,0.00027397,7]
[345220136,1734096640382,-500.0,0.00027397,7]
[345220137,1734096640391,-500.0,0.00027397,7]
[345220138,1734096640401,-500.0,0.00027397,7]
[345220139,1734096640410,-500.0,0.00027397,7]
[345220140,1734096640420,-500.0,0.00027397,7]
[345220141,1734096640429,-500.0,0.00027397,7]
[345220142,1734096640439,-500.0,0.00027397,7]
[345220143,1734096640448,-500.0,0.00027397,7]
[345220144,1734096640459,-1103.44,0.00027397,7]
[345220145,1734096640469,-339.03778033,0.00027397,7]
[345220146,1734096640478,-401.15826097,0.00027397,7]
[345220147,1734096640488,-500.0,0.00027397,7]
[345220148,1734096640499,-151.71285453,0.00027397,7]
[345220150,1734096640508,-500.0,0.00027397,7]
[345220152,1734096640518,-500.0,0.00027397,7]
[345220154,1734096640527,-500.0,0.00027397,7]
[345220156,1734096640536,-500.0,0.00027397,7]
[345220157,1734096640545,-492.54575983,0.00027397,7]
[345220159,1734096640555,-500.0,0.00027397,7]
[345220161,1734096640564,-500.0,0.00027397,7]
[345220163,1734096640574,-500.0,0.00027397,7]
[345220165,1734096640584,-168.0,0.00027397,7]
[345220166,1734096640593,-500.0,0.00027397,7]
[345220167,1734096640603,-568.81,0.00027397,7]
[345220168,1734096640612,-500.0,0.00027397,7]
[345220170,1734096640621,-500.0,0.00027397,7]
[345220172,1734096640630,-500.0,0.00027397,7]
[345220173,1734096640639,-500.0,0.00027397,7]
[345220174,1734096640649,-241.68828087,0.00027397,7]
[345220175,1734096640659,-559.46,0.00027397,7]
[345220176,1734096640668,-500.0,0.00027397,7]
[345220177,1734096640677,-500.0,0.00027397,7]
[345220178,1734096640687,-500.0,0.00027397,7]
[345220179,1734096640696,-500.0,0.00027397,7]
[345220180,1734096640706,-500.0,0.00027397,7]
[345220181,1734096640717,-840.03,0.00027397,7]
[345220182,1734096640726,-500.0,0.00027397,7]
[345220183,1734096640738,-500.0,0.00027397,7]
[345220184,1734096640747,-500.0,0.00027397,7]
[345220185,1734096640756,-500.0,0.00027397,7]
[345220186,1734096640765,-500.0,0.00027397,7]
[345220187,1734096640775,-500.0,0.00027397,7]
[345220188,1734096640784,-500.0,0.00027397,7]
[345220189,1734096640793,-500.0,0.00027397,7]
[345220190,1734096640803,-500.0,0.00027397,7]
[345220191,1734096640814,-500.0,0.00027397,7]
[345220192,1734096640823,-2444.7,0.00027397,7]
[345220193,1734096640832,-704.84,0.00027397,7]
[345220194,1734096640841,-695.12,0.00027397,7]
[345220195,1734096640851,-500.0,0.00027397,7]
[345220196,1734096640860,-500.0,0.00027397,7]
[345220197,1734096640870,-500.0,0.00027397,7]
[345220198,1734096640879,-761.01,0.00027397,7]
[345220199,1734096640889,-852.6,0.00027397,7]
[345220200,1734096640898,-500.0,0.00027397,7]
[345220201,1734096640907,-500.0,0.00027397,7]
[345220202,1734096640916,-674.69,0.00027397,7]
[345220203,1734096640925,-500.0,0.00027397,7]
[345220204,1734096640934,-500.0,0.00027397,7]
[345220205,1734096640944,-721.91,0.00027397,7]
[345220206,1734096640954,-500.0,0.00027397,7]
[345220207,1734096640963,-500.0,0.00027397,7]
[345220208,1734096640973,-500.0,0.00027397,7]
[345220209,1734096640983,-476.91471414,0.00027397,7]
[345220210,1734096640992,-500.0,0.00027397,7]
[345220211,1734096641001,-419.00443638,0.00027397,7]
[345220212,1734096641011,-582.31,0.00027397,7]
[345220213,1734096641020,-1048.43,0.00027397,7]
[345220214,1734096641029,-718.55,0.00027397,7]
[345220215,1734096641039,-507.91,0.00027397,7]
[345220216,1734096641049,-500.0,0.00027397,7]
[345220217,1734096641059,-500.0,0.00027397,7]
[345220218,1734096641068,-500.0,0.00027397,7]
[345220219,1734096641078,-849.04,0.00027397,7]
[345220220,1734096641087,-500.0,0.00027397,7]
[345220221,1734096641097,-500.0,0.00027397,7]
[345220222,1734096641106,-500.0,0.00027397,7]
[345220223,1734096641115,-234.216351,0.00027397,7]
[345220224,1734096641125,-234.216351,0.00027397,7]
[345220225,1734096641135,-234.216351,0.00027397,7]
[345220226,1734096641145,-234.216351,0.00027397,7]
[345220227,1734096641154,-234.216351,0.00027397,7]
[345220228,1734096641164,-500.0,0.00027397,7]
[345220229,1734096641173,-234.216351,0.00027397,7]
[345220230,1734096641183,-234.216351,0.00027397,7]
[345220231,1734096641193,-234.216351,0.00027397,7]
[345220232,1734096641203,-500.0,0.00027397,7]
[345220233,1734096641215,-500.0,0.00027397,7]
[345220234,1734096641224,-234.216351,0.00027397,7]
[345220235,1734096641234,-234.216351,0.00027397,7]
[345220236,1734096641243,-234.216351,0.00027397,7]
[345220237,1734096641253,-234.216351,0.00027397,7]
[345220238,1734096641262,-1333.08,0.00027397,7]
[345220239,1734096641272,-500.0,0.00027397,7]
[345220240,1734096641281,-500.0,0.00027397,7]
[345220241,1734096641290,-500.0,0.00027397,7]
[345220242,1734096641300,-500.0,0.00027397,7]
[345220243,1734096641309,-768.57,0.00027397,7]
[345220244,1734096641319,-500.0,0.00027397,7]
[345220245,1734096641328,-500.0,0.00027397,7]
[345220246,1734096641337,-500.0,0.00027397,7]
[345220247,1734096641347,-500.0,0.00027397,7]
[345220248,1734096641356,-500.0,0.00027397,7]
[345220249,1734096641366,-2692.64,0.00027397,7]
[345220250,1734096641375,-500.0,0.00027397,7]
[345220251,1734096641384,-531.76,0.00027397,7]
[345220252,1734096641394,-588.52,0.00027397,7]
[345220253,1734096641403,-500.0,0.00027397,7]
[345220254,1734096641413,-1153.27,0.00027397,7]
[345220255,1734096641423,-500.0,0.00027397,7]
[345220256,1734096641432,-500.0,0.00027397,7]
[345220257,1734096641442,-2161.96,0.00027397,7]
[345220258,1734096641451,-500.0,0.00027397,7]
[345220259,1734096641461,-500.0,0.00027397,7]
[345220260,1734096641472,-671.83,0.00027397,7]
[345220261,1734096641481,-500.0,0.00027397,7]
[345220262,1734096641491,-500.0,0.00027397,7]
[345220263,1734096641500,-507.79,0.00027397,7]
[345220264,1734096641509,-869.88,0.00027397,7]
[345220265,1734096641518,-500.0,0.00027397,7]
[345220266,1734096641528,-578.32,0.00027397,7]
[345220267,1734096641537,-4437.37,0.00027397,7]
[345220268,1734096641547,-500.0,0.00027397,7]
[345220269,1734096641556,-500.0,0.00027397,7]
[345220270,1734096641565,-500.0,0.00027397,7]
[345220271,1734096641575,-500.0,0.00027397,7]
[345220272,1734096641585,-947.0,0.00027397,7]
[345220273,1734096641594,-1560.87,0.00027397,7]
[345220274,1734096641603,-575.63,0.00027397,7]
[345220275,1734096641614,-500.0,0.00027397,7]
[345220276,1734096641812,-783.28,0.00027397,7]
[345220277,1734096641825,-500.0,0.00027397,7]
[345220278,1734096641835,-500.0,0.00027397,7]
[345220279,1734096641845,-25572.99,0.00027397,5]
[345220280,1734096641854,-500.0,0.00027397,7]
[345220281,1734096641864,-2189.65,0.00027397,7]
[345220282,1734096641874,-1919.78,0.00027397,7]
[345220283,1734096641897,-500.0,0.00027397,7]
[345220284,1734096641908,-500.0,0.00027397,7]
[345220285,1734096641919,-1845.87,0.00027397,7]
[345220286,1734096641929,-500.0,0.00027397,7]
[345220287,1734096641939,-599.95,0.00027397,7]
[345220288,1734096641950,-500.0,0.00027397,7]
[345220289,1734096641961,-161.0598975,0.00027397,7]
[345220290,1734096641974,-477.4,0.000274,2]
[345220291,1734096641984,-733.749779,0.00027434,2]
[345220292,1734096641994,-1899.42531461,0.00027571,3]
[345220293,1734096642005,-733.749779,0.00027571,2]
[345220294,1734096642015,-234.216351,0.000276,7]
[345220295,1734096642026,-234.216351,0.000276,7]
[345220296,1734096642037,-153.0,0.000276,2]
[345220297,1734096642047,-500.0,0.00027641,2]
[345220298,1734096642058,-500.0,0.00027641,2]
[345220299,1734096642068,-500.0,0.00027641,2]
[345220300,1734096642079,-500.0,0.00027641,2]
[345220301,1734096642089,-534.83569195,0.00027641,2]
[345220302,1734096642100,-500.0,0.00027641,2]
[345220303,1734096642111,-500.0,0.00027641,2]
[345220304,1734096642126,-345.87223378,0.00027641,2]
[345220305,1734096642140,-500.0,0.00027641,2]
[345220306,1734096642155,-500.0,0.00027641,2]
[345220307,1734096642187,-500.0,0.00027641,2]
[345220308,1734096642202,-500.0,0.00027641,2]
[345220309,1734096642212,-500.0,0.00027641,2]
[345220310,1734096642223,-500.0,0.00027641,2]
[345220311,1734096642233,-500.0,0.00027641,2]
[345220312,1734096642244,-500.0,0.00027641,2]
[345220313,1734096642254,-500.0,0.00027641,2]
[345220314,1734096642264,-500.0,0.00027641,2]
[345220315,1734096642274,-500.0,0.00027641,2]
[345220316,1734096642284,-495.0,0.00027641,2]
[345220317,1734096642294,-500.0,0.00027641,2]
[345220318,1734096642305,-500.0,0.00027641,2]
[345220319,1734096642315,-500.0,0.00027641,2]
[345220320,1734096642325,-500.0,0.00027641,2]
[345220321,1734096642336,-500.0,0.00027641,2]
[345220322,1734096642346,-500.0,0.00027641,2]
[345220323,1734096642356,-500.0,0.00027641,2]
[345220324,1734096642368,-186.46369688,0.00027641,2]
[345220325,1734096642378,-500.0,0.00027641,2]
[345220326,1734096642389,-500.0,0.00027641,2]
[345220327,1734096642399,-500.0,0.00027641,2]
[345220328,1734096642408,-500.0,0.00027641,2]
[345220329,1734096642418,-500.0,0.00027641,2]
[345220330,1734096642429,-500.0,0.00027641,2]
[345220331,1734096642439,-500.0,0.00027641,2]
[345220332,1734096642449,-500.0,0.00027641,2]
[345220333,1734096642459,-500.0,0.00027641,2]
[345220335,1734096642471,-500.0,0.00027641,2]
[345220337,1734096642480,-500.0,0.00027641,2]
[345220339,1734096642491,-500.0,0.00027641,2]
[345220341,1734096642500,-500.0,0.00027641,2]
[345220343,1734096642509,-500.0,0.00027641,2]
[345220345,1734096642519,-500.0,0.00027641,2]
[345220347,1734096642529,-500.0,0.00027641,2]
[345220349,1734096642539,-500.0,0.00027641,2]
[345220351,1734096642548,-500.0,0.00027641,2]
[345220353,1734096642558,-500.0,0.00027641,2]
[345220355,1734096642568,-500.0,0.00027641,2]
[345220357,1734096642578,-500.0,0.00027641,2]
[345220359,1734096642588,-500.0,0.00027641,2]
[345220361,1734096642598,-500.0,0.00027641,2]
[345220363,1734096642608,-500.0,0.00027641,2]
[345220366,1734096642618,-500.0,0.00027641,2]
[345220369,1734096642628,-500.0,0.00027641,2]
[345220372,1734096642638,-500.0,0.00027641,2]
[345220374,1734096642648,-500.0,0.00027641,2]
[345220377,1734096642658,-500.0,0.00027641,2]
[345220379,1734096642669,-500.0,0.00027641,2]
[345220381,1734096642679,-500.0,0.00027641,2]
[345220383,1734096642689,-500.0,0.00027641,2]
[345220385,1734096642699,-500.0,0.00027641,2]
[345220387,1734096642710,-500.0,0.00027641,2]
[345220388,1734096642722,-500.0,0.00027641,2]
[345220389,1734096642734,-500.0,0.00027641,2]
[345220390,1734096642749,-500.0,0.00027641,2]
[345220391,1734096642760,-500.0,0.00027641,2]
[345220392,1734096642770,-500.0,0.00027641,2]
[345220393,1734096642781,-500.0,0.00027641,2]
[345220394,1734096642791,-500.0,0.00027641,2]
[345220395,1734096642801,-355.1207552,0.00027641,2]
[345220396,1734096642815,-500.0,0.00027641,2]
[345220397,1734096642826,-500.0,0.00027641,2]
[345220398,1734096642836,-500.0,0.00027641,2]
[345220399,1734096642847,-500.0,0.00027641,2]
[345220400,1734096642857,-500.0,0.00027641,2]
[345220401,1734096642866,-500.0,0.00027641,2]
[345220402,1734096642876,-500.0,0.00027641,2]
[345220403,1734096642886,-500.0,0.00027641,2]
[345220404,1734096642895,-500.0,0.00027641,2]
[345220405,1734096642906,-500.0,0.00027641,2]
[345220406,1734096642917,-550.0,0.00027641,2]
[345220407,1734096642927,-500.0,0.00027641,2]
[345220408,1734096642937,-500.0,0.00027641,2]
[345220409,1734096642948,-500.0,0.00027641,2]
[345220410,1734096642958,-500.0,0.00027641,2]
[345220411,1734096642969,-500.0,0.00027641,2]
[345220412,1734096642978,-500.0,0.00027641,2]
[345220413,1734096642988,-234.216351,0.00027643,7]
[345220414,1734096642998,-234.216351,0.00027643,7]
[345220415,1734096643008,-234.216351,0.00027643,7]
[345220416,1734096643018,-234.216351,0.00027643,7]
[345220417,1734096643028,-234.216351,0.00027643,7]
[345220418,1734096643038,-234.2163468,0.00027643,7]
[345220419,1734096643048,-214.18949846,0.0002767,2]
[345220420,1734096643059,-184.0528817,0.0002767,2]
[345220421,1734096643070,-379.07068686,0.0002767,2]
[345220422,1734096643079,-500.0,0.00027671,7]
[345220423,1734096643090,-582.12308259,0.00027671,7]
[345220424,1734096643100,-500.0,0.00027671,7]
[345220425,1734096643110,-500.0,0.00027671,7]
[345220426,1734096643121,-501.28226224,0.00027671,7]
[345220427,1734096643131,-500.0,0.00027671,7]
[345220429,1734096643141,-504.55,0.00027671,7]
[345220431,1734096643152,-500.0,0.00027671,7]
[345220433,1734096643162,-500.0,0.00027671,7]
[345220435,1734096643172,-500.0,0.00027671,7]
[345220436,1734096643183,-500.0,0.00027671,7]
[345220438,1734096643193,-500.0,0.00027671,7]
[345220439,1734096643203,-500.0,0.00027671,7]
[345220440,1734096643216,-500.0,0.00027671,7]
[345220441,1734096643227,-500.0,0.00027671,7]
[345220442,1734096643236,-500.0,0.00027671,7]
[345220443,1734096643246,-629.09,0.00027671,7]
[345220444,1734096643256,-500.0,0.00027671,7]
[345220445,1734096643266,-500.0,0.00027671,7]
[345220446,1734096643276,-418.50226248,0.00027671,7]
[345220447,1734096643286,-595.97,0.00027671,7]
[345220448,1734096643297,-500.0,0.00027671,7]
[345220449,1734096643306,-500.0,0.00027671,7]
[345220450,1734096643316,-500.0,0.00027671,7]
[345220451,1734096643326,-500.0,0.00027671,7]
[345220452,1734096643336,-500.0,0.00027671,7]
[345220453,1734096643346,-500.0,0.00027671,7]
[345220454,1734096643356,-500.0,0.00027671,7]
[345220455,1734096643366,-500.0,0.00027671,7]
[345220456,1734096643377,-1103.44,0.00027671,7]
[345220457,1734096643387,-500.0,0.00027671,7]
[345220458,1734096643397,-500.0,0.00027671,7]
[345220459,1734096643407,-500.0,0.00027671,7]
[345220460,1734096643417,-500.0,0.00027671,7]
[345220461,1734096643426,-500.0,0.00027671,7]
[345220462,1734096643436,-500.0,0.00027671,7]
[345220463,1734096643445,-500.0,0.00027671,7]
[345220464,1734096643455,-500.0,0.00027671,7]
[345220465,1734096643468,-168.0,0.00027671,7]
[345220466,1734096643478,-500.0,0.00027671,7]
[345220467,1734096643491,-568.81,0.00027671,7]
[345220468,1734096643501,-500.0,0.00027671,7]
[345220469,1734096643510,-500.0,0.00027671,7]
[345220470,1734096643520,-500.0,0.00027671,7]
[345220471,1734096643530,-559.46,0.00027671,7]
[345220472,1734096643539,-500.0,0.00027671,7]
[345220473,1734096643549,-500.0,0.00027671,7]
[345220474,1734096643559,-500.0,0.00027671,7]
[345220475,1734096643569,-500.0,0.00027671,7]
[345220476,1734096643579,-500.0,0.00027671,7]
[345220477,1734096643588,-840.03,0.00027671,7]
[345220478,1734096643598,-500.0,0.00027671,7]
[345220479,1734096643608,-500.0,0.00027671,7]
[345220480,1734096643618,-500.0,0.00027671,7]
[345220481,1734096643637,-500.0,0.00027671,7]
[345220482,1734096643652,-500.0,0.00027671,7]
[345220483,1734096643667,-500.0,0.00027671,7]
[345220484,1734096643681,-500.0,0.00027671,7]
[345220485,1734096643694,-500.0,0.00027671,7]
[345220486,1734096643708,-257.03868673,0.00027671,7]
[345220487,1734096643720,-2444.7,0.00027671,7]
[345220488,1734096643733,-704.84,0.00027671,7]
[345220489,1734096643748,-695.12,0.00027671,7]
[345220490,1734096643762,-500.0,0.00027671,7]
[345220491,1734096643775,-500.0,0.00027671,7]
[345220492,1734096643787,-500.0,0.00027671,7]
[345220493,1734096643800,-761.01,0.00027671,7]
[345220494,1734096643814,-852.6,0.00027671,7]
[345220495,1734096643827,-500.0,0.00027671,7]
[345220496,1734096643839,-500.0,0.00027671,7]
[345220497,1734096643851,-674.69,0.00027671,7]
[345220498,1734096643864,-502.8076849,0.00027671,7]
[345220499,1734096643876,-500.0,0.00027671,7]
[345220500,1734096643889,-721.91,0.00027671,7]
[345220501,1734096643901,-500.0,0.00027671,7]
[345220502,1734096643913,-500.0,0.00027671,7]
[345220503,1734096643925,-500.0,0.00027671,7]
[345220504,1734096643936,-500.0,0.00027671,7]
[345220505,1734096643948,-582.31,0.00027671,7]
[345220506,1734096643961,-1048.43,0.00027671,7]
[345220507,1734096643975,-718.55,0.00027671,7]
[345220508,1734096643991,-507.91,0.00027671,7]
[345220509,1734096644003,-500.0,0.00027671,7]
[345220510,1734096644024,-500.0,0.00027671,7]
[345220511,1734096644037,-500.0,0.00027671,7]
[345220512,1734096644048,-849.04,0.00027671,7]
[345220513,1734096644060,-500.0,0.00027671,7]
[345220514,1734096644072,-500.0,0.00027671,7]
[345220515,1734096644083,-500.0,0.00027671,7]
[345220516,1734096644094,-500.0,0.00027671,7]
[345220517,1734096644104,-500.0,0.00027671,7]
[345220518,1734096644115,-500.0,0.00027671,7]
[345220519,1734096644127,-1333.08,0.00027671,7]
[345220520,1734096644138,-500.0,0.00027671,7]
[345220521,1734096644150,-500.0,0.00027671,7]
[345220522,1734096644163,-500.0,0.00027671,7]
[345220523,1734096644175,-500.0,0.00027671,7]
[345220524,1734096644187,-768.57,0.00027671,7]
[345220525,1734096644200,-500.0,0.00027671,7]
[345220526,1734096644211,-500.0,0.00027671,7]
[345220527,1734096644225,-500.0,0.00027671,7]
[345220528,1734096644238,-500.0,0.00027671,7]
[345220529,1734096644251,-500.0,0.00027671,7]
[345220530,1734096644264,-2692.64,0.00027671,7]
[345220531,1734096644277,-500.0,0.00027671,7]
[345220532,1734096644290,-531.76,0.00027671,7]
[345220533,1734096644300,-588.52,0.00027671,7]
[345220534,1734096644311,-500.0,0.00027671,7]
[345220535,1734096644322,-1153.27,0.00027671,7]
[345220536,1734096644332,-500.0,0.00027671,7]
[345220537,1734096644343,-500.0,0.00027671,7]
[345220538,1734096644358,-2161.96,0.00027671,7]
[345220539,1734096644372,-500.0,0.00027671,7]
[345220540,1734096644390,-500.0,0.00027671,7]
[345220541,1734096644404,-671.83,0.00027671,7]
[345220542,1734096644417,-500.0,0.00027671,7]
[345220543,1734096644429,-507.79,0.00027671,7]
[345220544,1734096644440,-253.62248709,0.00027671,7]
[345220592,1734096645919,-477.97369,0.00027262,15]
[345220594,1734096645931,-500.0,0.00027397,7]
[345220596,1734096645944,-616.25751291,0.00027671,7]